bitfinex/quotes_BTCUSD_20251021
["timestamp","ask_amount","ask_price","bid_price","bid_amount"]
[1761072257249,0.01438587,111810.0,111800.0,0.43161517]
[1761072257455,0.01438587,111810.0,111800.0,0.3842789]
[1761072258614,0.19326074,111810.0,111800.0,0.3842789]
[1761072261091,0.01438587,111810.0,111800.0,0.3842789]
[1761072261608,0.19326074,111810.0,111800.0,0.3842789]
[1761072262075,0.01438587,111810.0,111800.0,0.3842789]
[1761072263597,0.18785628,111830.0,111810.0,0.17887487]
[1761072263815,0.1788624,111820.0,111810.0,0.19422479]
[1761072264054,0.19802475,111820.0,111810.0,0.19422479]
[1761072264586,0.1788624,111820.0,111810.0,0.19422479]
[1761072265986,0.1788624,111820.0,111810.0,0.18952641]
[1761072266188,0.17884288,111830.0,111820.0,0.17885888]
[1761072266464,0.01917896,111830.0,111820.0,1.20885005]
[1761072266591,0.23480233,111860.0,111830.0,0.17882957]
[1761072266783,0.19832099,111860.0,111840.0,0.40196748]
[1761072266992,0.19832099,111860.0,111830.0,0.17884106]
[1761072266993,0.1788109,111850.0,111830.0,0.17884106]
[1761072267196,0.1788109,111850.0,111840.0,0.29426689]
[1761072267605,0.00033584,111860.0,111840.0,0.79645198]
[1761072267804,0.19830276,111860.0,111850.0,0.1788109]
[1761072268256,0.53830276,111860.0,111850.0,0.1788109]
[1761072268457,0.17913096,111860.0,111850.0,0.1788109]
[1761072268660,0.00033584,111860.0,111850.0,0.1788109]
[1761072268985,0.00033584,111860.0,111850.0,0.19042642]
[1761072269208,0.00033584,111860.0,111850.0,0.26862991]
[1761072269409,0.01464172,111860.0,111850.0,0.26862991]
[1761072269620,0.00033584,111860.0,111850.0,0.26862991]
[1761072269994,0.17913076,111860.0,111850.0,0.26862991]
[1761072270593,0.00033584,111860.0,111850.0,0.26862991]
[1761072270848,0.17913076,111860.0,111850.0,0.26862991]
[1761072271051,0.1933932,111860.0,111850.0,0.26862991]
[1761072271592,0.01459828,111860.0,111850.0,0.26862991]
[1761072271991,0.00033584,111860.0,111850.0,0.82672971]
[1761072272409,0.00033584,111860.0,111850.0,0.35844892]
[1761072273187,0.00033584,111860.0,111850.0,0.26862991]
[1761072273804,0.00033584,111860.0,111850.0,0.26962991]
[1761072275068,0.00033584,111860.0,111850.0,0.7379107]
[1761072276529,0.01477352,111860.0,111850.0,0.7379107]
[1761072276734,0.00033584,111860.0,111850.0,0.7379107]
[1761072277121,0.00033584,111860.0,111850.0,0.77470477]
[1761072278098,0.01487341,111860.0,111850.0,0.77470477]
[1761072283584,0.01487341,111860.0,111850.0,0.30642398]
[1761072283779,0.01487341,111860.0,111850.0,0.26962991]
[1761072283989,0.19366833,111860.0,111850.0,0.09081901]
[1761072284197,0.19366833,111860.0,111850.0,0.001]
[1761072284392,0.19366833,111860.0,111850.0,0.11632]
[1761072285185,0.19366833,111860.0,111850.0,0.2951309]
[1761072285834,0.19366833,111860.0,111850.0,0.2941309]
[1761072286202,0.18181865,111860.0,111850.0,0.2941309]
[1761072287964,0.52181865,111860.0,111850.0,0.2941309]
[1761072292211,0.52185865,111860.0,111850.0,0.2941309]
[1761072293128,0.34306373,111860.0,111850.0,0.2941309]
[1761072293650,0.00306373,111860.0,111850.0,0.2941309]
[1761072293853,0.18185865,111860.0,111850.0,0.2941309]
[1761072297684,0.00306373,111860.0,111850.0,0.79604878]
[1761072298803,4e-05,111860.0,111850.0,0.79604878]
[1761072300085,4e-05,111860.0,111850.0,0.79704878]
[1761072300387,0.17883492,111860.0,111850.0,0.001]
[1761072300625,0.17883492,111860.0,111850.0,0.2950509]
[1761072301206,0.17883492,111860.0,111850.0,0.2940509]
[1761072301770,4e-05,111860.0,111850.0,0.2940509]
[1761072302184,0.17883492,111860.0,111850.0,0.2940509]
[1761072302763,4e-05,111860.0,111850.0,0.2940509]
[1761072303109,0.17883492,111860.0,111850.0,0.2940509]
[1761072303393,4e-05,111860.0,111850.0,0.2940509]
[1761072304736,0.17883492,111860.0,111850.0,0.2940509]
[1761072305138,4e-05,111860.0,111850.0,0.2940509]
[1761072305778,4e-05,111860.0,111850.0,0.88578779]
[1761072306023,4e-05,111860.0,111850.0,1.29788666]
[1761072307656,4e-05,111860.0,111850.0,1.29888666]
[1761072308840,4e-05,111860.0,111850.0,1.33506894]
[1761072309013,4e-05,111860.0,111850.0,1.67506894]
[1761072309501,4e-05,111860.0,111850.0,1.70704075]
[1761072310035,4e-05,111860.0,111850.0,2.11913962]
[1761072310232,4e-05,111860.0,111850.0,2.12913961]
[1761072310858,1e-08,111890.0,111880.0,0.21494524]
[1761072311067,1e-08,111890.0,111880.0,1.76792762]
[1761072311277,1e-08,111890.0,111880.0,1.77792761]
[1761072311696,0.00100719,111890.0,111880.0,1.77792761]
[1761072312166,1e-08,111890.0,111880.0,1.31019072]
[1761072312371,1e-08,111890.0,111880.0,1.77892761]
[1761072313211,0.0004,111920.0,111880.0,1.77892761]
[1761072313212,1e-08,111920.0,111910.0,0.55489731]
[1761072313433,1e-08,111920.0,111910.0,1.30302506]
[1761072314609,1e-08,111920.0,111910.0,1.33021648]
[1761072316224,1e-08,111920.0,111910.0,1.34021647]
[1761072318720,1e-08,111920.0,111910.0,1.59570621]
[1761072318924,0.00100679,111920.0,111910.0,1.59570621]
[1761072319817,0.00100679,111920.0,111910.0,1.5595148]
[1761072321586,1e-08,111920.0,111910.0,1.5595148]
[1761072321785,1e-08,111930.0,111920.0,0.55488135]
[1761072321992,1e-08,111930.0,111920.0,1.457746]
[1761072322386,0.00033553,111930.0,111920.0,1.457746]
[1761072322950,0.0004,111940.0,111930.0,0.90190973]
[1761072323195,0.0004,111940.0,111930.0,1.10680874]
[1761072323984,0.0004,111940.0,111930.0,1.25560874]
[1761072324192,0.0004,111940.0,111930.0,1.34642775]
[1761072324422,0.0004,111940.0,111930.0,1.25560874]
[1761072324685,0.0004,111940.0,111930.0,1.25660874]
[1761072327014,0.0004,111940.0,111930.0,1.29279102]
[1761072327219,0.0004,111940.0,111930.0,1.49399101]
[1761072328234,1e-08,111940.0,111930.0,1.49399101]
[1761072328479,1e-08,111940.0,111930.0,1.59381001]
[1761072328686,0.00033548,111940.0,111930.0,1.59381001]
[1761072329501,0.00033548,111940.0,111930.0,1.58381002]
[1761072329703,1e-08,111940.0,111930.0,1.59381001]
[1761072329939,1e-08,111940.0,111930.0,1.58381002]
[1761072330137,1e-08,111940.0,111930.0,1.74261001]
[1761072330546,1e-08,111940.0,111930.0,4.74261001]
[1761072330886,1e-08,111940.0,111930.0,4.59381001]
[1761072331080,0.0004,111970.0,111960.0,1.27804413]
[1761072331292,0.0004,111970.0,111960.0,1.57272215]
[1761072331430,0.0014061,111970.0,111960.0,1.57272215]
[1761072331639,0.0014061,111970.0,111960.0,1.53653987]
[1761072331837,1e-08,111980.0,111970.0,0.17861927]
[1761072332037,1e-08,111980.0,111970.0,1.2958901]
[1761072332251,1e-08,111980.0,111970.0,0.65400049]
[1761072332460,1e-08,111980.0,111970.0,1.37722712]
[1761072333483,1e-08,111980.0,111970.0,1.37922712]
[1761072334067,1e-08,111980.0,111970.0,1.40585144]
[1761072334190,1e-08,111980.0,111970.0,1.49567045]
[1761072335019,1e-08,111990.0,111980.0,0.52860331]
[1761072335223,1e-08,111990.0,111980.0,1.58265024]
[1761072336002,1e-08,111990.0,111980.0,1.46765024]
[1761072336218,1e-08,111990.0,111980.0,1.58365024]
[1761072338732,1e-08,111990.0,111980.0,0.86042361]
[1761072338944,1e-08,111990.0,111980.0,1.58365024]
[1761072339155,0.00067054,111990.0,111980.0,1.58365024]
[1761072340463,0.00067054,111990.0,111980.0,1.57365025]
[1761072340788,0.00067054,111990.0,111980.0,1.57361025]
[1761072340988,0.00067054,111990.0,111980.0,1.36883124]
[1761072341198,0.00067054,111990.0,111980.0,1.48379124]
[1761072341775,0.00067054,111990.0,111980.0,0.72438233]
[1761072342014,0.00067054,111990.0,111980.0,1.44760896]
[1761072342223,0.00067054,111990.0,111980.0,0.99264896]
[1761072342432,0.00067054,111990.0,111980.0,0.38438233]
[1761072342840,0.00067054,111990.0,111980.0,1.19742797]
[1761072343251,0.00067054,111990.0,111980.0,1.34742697]
[1761072348350,0.00071054,111990.0,111980.0,1.38360925]
[1761072348556,0.00071054,111990.0,111980.0,1.72360925]
[1761072352008,0.00071054,111990.0,111980.0,1.63379024]
[1761072352877,0.00071054,111990.0,111980.0,1.59756796]
[1761072353505,0.00071054,111990.0,111980.0,1.63375024]
[1761072357282,0.00071054,111990.0,111980.0,1.66567364]
[1761072357938,0.00071054,111990.0,111980.0,1.63375024]
[1761072358157,0.00071054,111990.0,111980.0,1.72356925]
[1761072358392,0.00071054,111990.0,111980.0,1.75549265]
[1761072359238,0.00071054,111990.0,111980.0,1.62945136]
[1761072360471,0.00071054,111990.0,111980.0,1.66563364]
[1761072362657,0.00071054,111990.0,111980.0,1.71364394]
[1761072362874,0.00071054,111990.0,111980.0,0.94240701]
[1761072363049,0.00071054,111990.0,111980.0,1.66563364]
[1761072363307,0.00071054,111990.0,111980.0,1.75545265]
[1761072364879,0.18745041,112030.0,112020.0,0.17853954]
[1761072365337,0.18879087,112030.0,112020.0,0.17853954]
[1761072365537,0.17986406,112030.0,112020.0,0.19639349]
[1761072365967,0.21728781,112030.0,112020.0,0.19639349]
[1761072366385,0.03876421,112030.0,112020.0,0.19639349]
[1761072366602,0.03876421,112030.0,112020.0,0.2862125]
[1761072366802,0.03876421,112030.0,112020.0,0.26835855]
[1761072367228,0.04710014,112030.0,112020.0,0.35817756]
[1761072367403,0.04710014,112030.0,112020.0,0.26835855]
[1761072368874,0.04714014,112030.0,112020.0,0.26835855]
[1761072369911,0.23458992,112030.0,111990.0,0.22939553]
[1761072370140,0.17853954,112020.0,112000.0,0.20465901]
[1761072370388,0.17858737,111990.0,111980.0,0.149999]
[1761072370806,0.17858737,111990.0,111980.0,0.264839]
[1761072371016,0.1785728,112000.0,111980.0,0.53325333]
[1761072371552,0.17858737,111990.0,111980.0,0.35470703]
[1761072371761,0.17858737,111990.0,111980.0,0.53331035]
[1761072372500,0.1785728,112000.0,111980.0,0.53331035]
[1761072372930,0.46668965,111980.0,111970.0,0.91077271]
[1761072373134,0.46683658,111980.0,111970.0,1.45543172]
[1761072373332,0.46683658,111980.0,111970.0,1.491614]
[1761072374267,0.46683658,111980.0,111970.0,1.492614]
[1761072374683,0.46683658,111980.0,111970.0,0.61936509]
[1761072374893,0.46683658,111980.0,111970.0,0.39420509]
[1761072375539,0.46683658,111980.0,111970.0,0.39320509]
[1761072375958,0.46683658,111980.0,111970.0,1.11639172]
[1761072376368,0.46687658,111980.0,111970.0,1.11539172]
[1761072376565,0.46687658,111980.0,111970.0,0.39216509]
[1761072377173,0.50393228,111980.0,111970.0,0.39216509]
[1761072377378,0.46687658,111980.0,111970.0,0.39216509]
[1761072377816,0.46687658,111980.0,111970.0,1.45539172]
[1761072379314,0.46687658,111980.0,111970.0,1.491574]
[1761072379514,0.46687658,111980.0,111970.0,1.493574]
[1761072380111,0.46687658,111980.0,111970.0,1.492574]
[1761072380503,0.46687658,111980.0,111970.0,1.493574]
[1761072380726,0.46687658,111980.0,111970.0,1.23731615]
[1761072381702,0.46687658,111980.0,111970.0,1.32613516]
[1761072381908,0.46687658,111980.0,111970.0,1.47493516]
[1761072382117,0.46687658,111980.0,111970.0,1.50785856]
[1761072382870,0.46687658,111980.0,111970.0,1.52394546]
[1761072383728,1e-08,111980.0,111970.0,1.37514546]
[1761072383947,1e-08,111980.0,111970.0,1.35921674]
[1761072384985,1e-08,111980.0,111970.0,1.38514545]
[1761072385786,1e-08,111980.0,111970.0,1.39514544]
[1761072386554,0.52391553,112050.0,112030.0,0.1785236]
[1761072386826,0.52440642,112050.0,112030.0,0.1785236]
[1761072387064,0.52440642,112050.0,112040.0,0.17850767]
[1761072387065,0.37635976,112050.0,112040.0,0.17850767]
[1761072387277,0.04439481,112050.0,112040.0,0.17850767]
[1761072387499,0.03607976,112050.0,112040.0,0.76027645]
[1761072387759,0.03607976,112050.0,112040.0,0.85009546]
[1761072388238,0.00049089,112050.0,112040.0,0.85009546]
[1761072388886,0.03925274,112050.0,112040.0,0.38312668]
[1761072389112,0.00149089,112050.0,112040.0,0.38312668]
[1761072389285,0.00049089,112050.0,112040.0,0.93054366]
[1761072389745,0.00049089,112050.0,112040.0,0.46357488]
[1761072389917,0.00049089,112050.0,112040.0,0.93054366]
[1761072390364,0.00049089,112050.0,112040.0,0.85009546]
[1761072390813,0.00049089,112050.0,112040.0,1.19009546]
[1761072391052,0.0004,112070.0,112060.0,0.17847581]
[1761072391294,0.0005472,112070.0,112060.0,0.4009024]
[1761072391508,0.0005472,112070.0,112060.0,0.8500236]
[1761072391762,0.0005472,112070.0,112060.0,0.93984261]
[1761072392387,0.0005472,112070.0,112060.0,1.31602489]
[1761072392833,0.00289205,112070.0,112060.0,1.31602489]
[1761072393256,0.00289205,112070.0,112060.0,1.22620588]
[1761072394143,0.00289205,112070.0,112060.0,1.22720588]
[1761072394828,0.00289205,112070.0,112060.0,1.22820588]
[1761072395037,0.00289114,112070.0,112060.0,0.27029482]
[1761072395251,0.00289114,112070.0,112060.0,0.38505482]
[1761072395465,0.00289114,112070.0,112060.0,0.46898783]
[1761072395670,0.00289114,112070.0,112060.0,0.38405482]
[1761072395875,0.00289114,112070.0,112060.0,0.26929482]
[1761072396075,0.18135103,112070.0,112060.0,0.26929482]
[1761072396279,0.18135103,112070.0,112060.0,0.38401482]
[1761072396497,0.00289114,112070.0,112060.0,0.38401482]
[1761072396713,0.00289114,112070.0,112060.0,0.38501482]
[1761072396916,0.00289114,112070.0,112060.0,0.43936406]
[1761072397134,0.00289114,112070.0,112060.0,0.38301482]
[1761072397339,0.00289114,112070.0,112060.0,0.8509836]
[1761072397543,0.00289114,112070.0,112060.0,0.88716588]
[1761072397760,0.00289114,112070.0,112060.0,0.88616588]
[1761072397967,0.00289114,112070.0,112060.0,0.97598489]
[1761072398369,0.00289114,112070.0,112060.0,0.88616588]
[1761072400440,0.00289114,112070.0,112060.0,0.88716588]
[1761072401071,0.00289114,112070.0,112060.0,1.22716588]
[1761072401867,0.00289114,112070.0,112060.0,1.1909836]
[1761072402308,0.00289114,112070.0,112060.0,1.22716588]
[1761072402678,0.00289114,112070.0,112060.0,1.31698489]
[1761072405541,0.00289114,112070.0,112060.0,1.28080261]
[1761072405768,0.00289114,112070.0,112060.0,1.31698489]
[1761072408753,0.00289114,112070.0,112060.0,0.85001611]
[1761072409006,1e-08,112070.0,112060.0,1.31698489]
[1761072410120,1e-08,112070.0,112060.0,1.46478489]
[1761072410336,1e-08,112070.0,112060.0,1.46578489]
[1761072410977,1e-08,112070.0,112060.0,1.46678489]
[1761072411151,1e-08,112070.0,112060.0,1.31798489]
[1761072411474,4.001e-05,112070.0,112060.0,1.31698489]
[1761072411722,4.001e-05,112070.0,112060.0,1.79395366]
[1761072411893,4.001e-05,112070.0,112060.0,1.13128106]
[1761072412167,4.001e-05,112070.0,112060.0,4.42869137]
[1761072412602,4.001e-05,112070.0,112060.0,4.52299137]
[1761072412867,4.001e-05,112070.0,112060.0,4.42769137]
[1761072413367,4.001e-05,112070.0,112060.0,4.42869137]
[1761072413600,4.001e-05,112070.0,112060.0,4.46074076]
[1761072414010,4.001e-05,112070.0,112060.0,4.49692304]
[1761072415233,1e-08,112100.0,112090.0,0.64539682]
[1761072415449,1e-08,112100.0,112090.0,0.84985583]
[1761072416342,1e-08,112100.0,112090.0,0.85085583]
[1761072416553,1e-08,112100.0,112090.0,0.85185583]
[1761072416905,1e-08,112100.0,112090.0,0.85085583]
[1761072417299,1e-08,112100.0,112090.0,0.85185583]
[1761072417523,1e-08,112100.0,112090.0,0.85085583]
[1761072417964,1e-08,112100.0,112090.0,0.85185583]
[1761072419060,1e-08,112100.0,112090.0,0.27024705]
[1761072419266,0.17841214,112100.0,112090.0,0.002]
[1761072419518,0.21413329,112100.0,112090.0,0.002]
[1761072419724,0.55413329,112100.0,112090.0,0.1166]
[1761072419938,0.55413329,112100.0,112090.0,0.29402804]
[1761072420676,0.55413329,112100.0,112090.0,0.29302804]
[1761072420883,0.55513765,112100.0,112090.0,0.29302804]
[1761072421743,0.37672552,112100.0,112090.0,0.29302804]
[1761072423035,0.55513765,112100.0,112090.0,0.29302804]
[1761072423672,0.34100437,112100.0,112090.0,0.29302804]
[1761072423848,0.00100437,112100.0,112090.0,0.84981583]
[1761072425292,0.00104437,112100.0,112090.0,0.84981583]
[1761072427701,0.00104437,112100.0,112090.0,0.38284705]
[1761072427950,0.00104437,112100.0,112090.0,0.26824705]
[1761072428088,0.00104437,112100.0,112090.0,0.38284705]
[1761072428285,0.17945701,112100.0,112080.0,0.17844324]
[1761072428549,0.24827816,112100.0,112090.0,0.29302804]
[1761072428731,0.24827816,112100.0,112090.0,0.1146]
[1761072428934,0.04372583,112100.0,112090.0,0.1146]
[1761072429147,0.04372583,112100.0,112090.0,0.29302804]
[1761072429851,0.08045842,112100.0,112090.0,0.29302804]
[1761072431565,0.08045842,112100.0,112090.0,0.17842804]
[1761072431771,0.08045842,112100.0,112090.0,0.19627084]
[1761072433271,0.03673259,112100.0,112090.0,0.19627084]
[1761072433466,0.51880319,112110.0,112090.0,0.19627084]
[1761072433694,0.17841213,112100.0,112090.0,0.19627084]
[1761072434144,0.17941649,112100.0,112090.0,0.19627084]
[1761072434505,0.03810725,112100.0,112090.0,0.19627084]
[1761072436700,0.21651938,112100.0,112090.0,0.19627084]
[1761072437112,0.03810725,112100.0,112090.0,0.19627084]
[1761072441844,0.55651938,112100.0,112090.0,0.19627084]
[1761072441960,0.37810725,112100.0,112090.0,0.19627084]
[1761072443116,0.55651938,112100.0,112090.0,0.19627084]
[1761072443756,0.37810725,112100.0,112090.0,0.19627084]
[1761072455969,0.6181561,112100.0,112070.0,0.03195435]
[1761072456154,0.11456,112090.0,112070.0,0.17845989]
[1761072456379,0.63298804,112090.0,112080.0,0.17844396]
[1761072456837,0.63298804,112090.0,112070.0,0.17845989]
[1761072457119,0.63298804,112090.0,112080.0,0.17844396]
[1761072459816,0.45456,112090.0,112080.0,0.17844396]
[1761072460023,0.34,112090.0,112080.0,0.31080835]
[1761072460230,0.00054706,112110.0,112100.0,0.17841213]
[1761072460438,0.00054706,112110.0,112100.0,0.19625334]
[1761072460643,0.00054706,112110.0,112100.0,0.29293213]
[1761072460854,0.00054706,112110.0,112100.0,0.38275114]
[1761072461525,0.00154706,112110.0,112100.0,0.38275114]
[1761072461888,0.00188608,112110.0,112100.0,0.38275114]
[1761072462715,0.00188608,112110.0,112100.0,1.10413044]
[1761072463773,0.00188608,112110.0,112100.0,1.19394945]
[1761072464132,0.00188608,112110.0,112100.0,1.10413044]
[1761072464936,0.00188608,112110.0,112100.0,0.38275114]
[1761072466239,0.00188608,112110.0,112100.0,1.10413044]
[1761072466460,0.00188608,112110.0,112100.0,1.13608479]
[1761072466688,0.05,112120.0,112110.0,0.17839621]
[1761072466869,0.05,112120.0,112110.0,0.98959452]
[1761072467121,0.05,112120.0,112110.0,1.02886566]
[1761072467421,0.05033466,112120.0,112110.0,1.02886566]
[1761072467622,0.05033466,112120.0,112110.0,0.98959452]
[1761072471470,0.05033466,112120.0,112110.0,0.99059452]
[1761072471609,0.05033466,112120.0,112110.0,0.99159452]
[1761072472664,0.05037466,112120.0,112110.0,1.02816978]
[1761072472858,0.05037466,112120.0,112110.0,1.08141353]
[1761072473322,0.05037466,112120.0,112110.0,1.11729595]
[1761072476760,0.02537466,112120.0,112110.0,1.11729595]
[1761072477406,0.02537466,112120.0,112110.0,1.08141353]
[1761072478201,0.02537466,112120.0,112110.0,1.11794749]
[1761072478592,0.02537466,112120.0,112110.0,0.36003423]
[1761072478763,0.02537466,112120.0,112110.0,1.08141353]
[1761072479348,0.02537466,112120.0,112110.0,0.36003423]
[1761072479555,0.02537466,112120.0,112110.0,1.11695724]
[1761072480956,0.02548,112130.0,112120.0,0.8997596]
[1761072481176,0.02548,112130.0,112120.0,1.3788199]
[1761072482174,1e-08,112130.0,112120.0,1.3798199]
[1761072482418,1e-08,112130.0,112120.0,1.3808199]
[1761072482991,1e-08,112130.0,112120.0,1.5710199]
[1761072483166,1e-08,112130.0,112120.0,1.50953423]
[1761072483397,1e-08,112130.0,112120.0,1.62905398]
[1761072483894,1e-08,112130.0,112120.0,4.73977988]
[1761072484092,1e-08,112160.0,112150.0,0.21451487]
[1761072484300,1e-08,112160.0,112150.0,1.17939952]
[1761072484301,0.00014704,112160.0,112150.0,1.17939952]
[1761072484507,1e-08,112160.0,112150.0,1.21334124]
[1761072484702,1e-08,112160.0,112150.0,0.90147616]
[1761072484969,1e-08,112160.0,112150.0,0.93339846]
[1761072485207,1e-08,112160.0,112150.0,1.24945673]
[1761072485426,1e-08,112160.0,112150.0,1.68288398]
[1761072485916,1e-08,112160.0,112150.0,1.27336976]
[1761072486278,1e-08,112160.0,112150.0,1.27436976]
[1761072486486,1e-08,112160.0,112150.0,1.68388398]
[1761072486705,1e-08,112160.0,112150.0,2.18454936]
[1761072486911,1e-08,112160.0,112150.0,2.07053241]
[1761072487118,1e-08,112160.0,112150.0,2.11841587]
[1761072487334,1e-08,112160.0,112150.0,2.11938201]
[1761072487580,1e-08,112160.0,112150.0,1.38945749]
[1761072487813,1e-08,112160.0,112150.0,2.11938201]
[1761072489247,1e-08,112180.0,112150.0,2.08749357]
[1761072489448,4.9e-05,112180.0,112170.0,1.02422661]
[1761072489625,4.9e-05,112180.0,112170.0,1.25230753]
[1761072490011,0.384799,112230.0,112220.0,0.17822135]
[1761072490195,0.45557814,112230.0,112220.0,0.11436]
[1761072490395,0.45557814,112230.0,112220.0,0.38240036]
[1761072490396,0.02544901,112230.0,112220.0,0.38240036]
[1761072490636,4.901e-05,112230.0,112220.0,0.38240036]
[1761072491682,4.901e-05,112230.0,112220.0,1.15838723]
[1761072492293,4.901e-05,112230.0,112220.0,0.4384627]
[1761072492440,0.21499745,112230.0,112210.0,0.17823602]
[1761072492650,0.00339206,112230.0,112220.0,0.29258135]
[1761072492876,0.18159753,112230.0,112220.0,0.29258135]
[1761072493082,0.21841639,112230.0,112220.0,0.29258135]
[1761072493870,0.04021092,112230.0,112220.0,0.29258135]
[1761072494272,0.52712735,112240.0,112220.0,0.29258135]
[1761072494474,0.001,112230.0,112220.0,0.29258135]
[1761072494901,0.58171074,112240.0,112220.0,0.29258135]
[1761072495103,0.40352112,112240.0,112230.0,0.17720547]
[1761072495333,0.58171071,112240.0,112230.0,0.17720547]
[1761072495533,0.58171071,112240.0,112220.0,0.29258135]
[1761072495737,0.58171071,112240.0,112230.0,0.17820547]
[1761072496105,0.37672513,112240.0,112230.0,0.17820547]
[1761072496309,0.03672513,112240.0,112230.0,0.22528415]
[1761072496514,0.03672513,112240.0,112230.0,0.17820547]
[1761072497316,0.21491472,112240.0,112230.0,0.17820547]
[1761072497539,0.21591472,112240.0,112230.0,0.17820547]
[1761072497964,0.21491472,112240.0,112230.0,0.17820547]
[1761072498167,0.21491472,112240.0,112220.0,0.29258135]
[1761072498325,0.21491472,112240.0,112230.0,0.17820547]
[1761072499915,0.03672513,112240.0,112230.0,0.17820547]
[1761072500843,0.21524885,112240.0,112230.0,0.17820547]
[1761072501043,0.21524885,112240.0,112220.0,0.38240036]
[1761072501248,0.03705926,112240.0,112230.0,0.17820547]
[1761072503156,0.03705926,112240.0,112230.0,0.19602601]
[1761072503358,0.03705926,112240.0,112230.0,0.17820547]
[1761072503503,0.03705926,112240.0,112230.0,0.30350428]
[1761072503703,0.03705926,112240.0,112230.0,0.28568374]
[1761072504043,0.03705926,112240.0,112230.0,0.26802448]
[1761072504481,0.00082408,112240.0,112230.0,0.26802448]
[1761072507246,0.17901367,112240.0,112220.0,0.29258135]
[1761072507445,0.17820547,112230.0,112210.0,0.17822884]
[1761072507781,0.18711574,112230.0,112210.0,0.29251723]
[1761072508242,0.34828013,112230.0,112220.0,0.17822135]
[1761072508445,0.34828013,112230.0,112210.0,0.29251723]
[1761072508446,0.55328502,112230.0,112210.0,0.29251723]
[1761072509584,0.17822135,112220.0,112210.0,0.11428]
[1761072509789,0.17823723,112210.0,112200.0,0.17825311]
[1761072509983,0.17823723,112210.0,112200.0,0.29253311]
[1761072510233,0.17822135,112220.0,112210.0,0.17823723]
[1761072510456,0.34,112220.0,112210.0,0.17823723]
[1761072510659,0.52651898,112220.0,112210.0,0.17823723]
[1761072510822,0.18651898,112220.0,112200.0,0.29253311]
[1761072510991,0.18651898,112220.0,112210.0,0.17823723]
[1761072512750,0.18751898,112220.0,112210.0,0.17823723]
[1761072513110,0.00929763,112220.0,112210.0,0.17823723]
[1761072513301,0.00829763,112220.0,112210.0,0.17823723]
[1761072513464,0.00929763,112220.0,112210.0,0.17823723]
[1761072514089,0.00829763,112220.0,112210.0,0.17823723]
[1761072514928,0.00829763,112220.0,112210.0,0.26805624]
[1761072515392,0.51820593,112230.0,112220.0,0.17822135]
[1761072515604,0.51820593,112230.0,112210.0,0.17823723]
[1761072516003,0.51820593,112230.0,112220.0,0.17822135]
[1761072516780,0.51820593,112230.0,112210.0,0.17823723]
[1761072516920,0.51820593,112230.0,112220.0,0.17822135]
[1761072517520,0.51820547,112230.0,112220.0,0.17822135]
[1761072518145,0.54500306,112230.0,112220.0,0.17822135]
[1761072518918,0.54500306,112230.0,112210.0,0.17823723]
[1761072519089,0.54500306,112230.0,112210.0,0.29251723]
[1761072519807,0.54504306,112230.0,112210.0,0.29251723]
[1761072520672,0.17822135,112220.0,112210.0,0.29251723]
[1761072520875,0.54504306,112230.0,112210.0,0.29251723]
[1761072521373,0.54504306,112230.0,112220.0,0.17822135]
[1761072521934,0.34004,112230.0,112220.0,0.17822135]
[1761072522209,0.51824547,112230.0,112220.0,0.17822135]
[1761072525017,0.34004,112230.0,112220.0,0.17822135]
[1761072525220,0.51824547,112230.0,112220.0,0.17822135]
[1761072525617,0.34004,112230.0,112220.0,0.17822135]
[1761072526572,0.51824547,112230.0,112220.0,0.17822135]
[1761072526818,0.34004,112230.0,112220.0,0.17822135]
[1761072528770,0.34004,112230.0,112220.0,0.19604348]
[1761072529116,4e-05,112230.0,112220.0,0.75114604]
[1761072529316,4e-05,112230.0,112220.0,0.26804036]
[1761072529960,4e-05,112230.0,112220.0,0.17822135]
[1761072529961,0.17824547,112230.0,112220.0,0.17822135]
[1761072530381,0.17824547,112230.0,112210.0,0.29251723]
[1761072530618,0.17824547,112230.0,112210.0,0.11428]
[1761072530823,0.51823747,112210.0,112190.0,0.21103712]
[1761072530977,0.51823747,112210.0,112200.0,0.29249311]
[1761072531342,0.51823747,112210.0,112200.0,0.11424]
[1761072531539,0.17825311,112200.0,112190.0,0.18713521]
[1761072531747,0.51823747,112210.0,112190.0,0.30137521]
[1761072532160,0.51823747,112210.0,112200.0,0.17825311]
[1761072532773,0.51872712,112210.0,112200.0,0.17825311]
[1761072535303,0.34048965,112210.0,112200.0,0.17825311]
[1761072535715,0.51872688,112210.0,112200.0,0.17825311]
[1761072537093,0.00048965,112210.0,112200.0,0.99727631]
[1761072537293,0.00048965,112210.0,112200.0,0.58776471]
[1761072539607,0.00048965,112210.0,112200.0,0.17825311]
[1761072539745,0.00048965,112210.0,112200.0,0.58776471]
[1761072540637,0.00048965,112210.0,112200.0,0.67758372]
[1761072541477,0.00048965,112210.0,112200.0,0.70148563]
[1761072542224,0.00048965,112210.0,112200.0,0.67758372]
[1761072543210,0.00048965,112210.0,112200.0,0.70148563]
[1761072543463,0.00048965,112210.0,112200.0,0.67758372]
[1761072544350,0.00048965,112210.0,112200.0,0.26807212]
[1761072544533,0.00048965,112210.0,112200.0,0.67758372]
[1761072545288,0.00048965,112210.0,112200.0,0.70148563]
[1761072545421,0.00048965,112210.0,112200.0,0.67758372]
[1761072546279,0.00048965,112210.0,112200.0,0.70148563]
[1761072546438,0.00048965,112210.0,112200.0,0.67758372]
[1761072546877,0.00048965,112210.0,112200.0,0.26807212]
[1761072547040,0.00048965,112210.0,112200.0,0.58776471]
[1761072547243,0.00048965,112210.0,112200.0,0.17825311]
[1761072547448,0.00048965,112210.0,112200.0,0.58776471]
[1761072548367,0.00048965,112210.0,112200.0,0.17825311]
[1761072548614,0.17872688,112210.0,112200.0,0.17825311]
[1761072548753,0.51872688,112210.0,112190.0,0.30137521]
[1761072548958,0.51872688,112210.0,112200.0,0.17825311]
[1761072549961,0.00048965,112210.0,112200.0,0.60559002]
[1761072550186,0.00048965,112210.0,112200.0,0.58776471]
[1761072551496,0.00048965,112210.0,112200.0,0.17825311]
[1761072551745,0.00048965,112210.0,112200.0,0.60559002]
[1761072552029,0.00048965,112210.0,112200.0,0.58776471]
[1761072553130,0.00048965,112210.0,112200.0,1.08709532]
[1761072553404,0.00048965,112210.0,112200.0,1.14248255]
[1761072553982,0.00048965,112210.0,112200.0,1.70079415]
[1761072554180,0.00048965,112210.0,112200.0,1.70876145]
[1761072554383,0.00048965,112210.0,112200.0,1.34713331]
[1761072554585,0.00048965,112210.0,112200.0,1.31564799]
[1761072555187,0.00048965,112210.0,112200.0,0.49662479]
[1761072555349,0.00048965,112210.0,112200.0,1.31564799]
[1761072555550,0.00048965,112210.0,112200.0,1.31664799]
[1761072556411,0.00048965,112210.0,112200.0,1.31764799]
[1761072557599,0.00048965,112210.0,112200.0,1.29379119]
[1761072558935,0.00048965,112210.0,112200.0,1.26976453]
[1761072562251,0.00048965,112210.0,112200.0,0.47476457]
[1761072562452,0.00048965,112210.0,112200.0,0.44289536]